Workbook

Sheet Hoja1
H5: Hospital General de Especialidades Dr. Mario Tolentino Dipp
H8: Gerencia de Estadística
H10: Consolidado Trimestral Enero - Marzo 2024
H13: Servicios brindados | J13: Primer Trimestre 2024 | M13: Total trimestre
J14: Enero | K14: Febrero | L14: Marzo
H15: Consultas | I15: Alergologia | M15: =J15+K15+L15 -> 0
I16: Anestesiologia y reanimacion | M16: =J16+K16+L16 -> 0
I17: Cardiologia | M17: 0
I18: Cirugia Pediatrica | M18: 0
I19: Cirugia Plastica-Reparadora | M19: 0
I20: Cirugía Maxilo-facial | M20: =J20+K20+L20 -> 0
I21: Dermatologia | M21: 0
I22: Endocrinologia | M22: 0
I23: Fisioterapia | M23: 0
I24: Gastroenterologia | M24: 0
I25: Genética | M25: 0
I26: Ginecología | M26: 0
I27: Hematologia | M27: 0
I28: Infectología | M28: 0
I29: Nefrologia | M29: 0
I30: Neonatología | M30: 0
I31: Neurocirugia | M31: 0
I32: Neurologia | M32: 0
I33: Neumologia | M33: 0
I34: Nutrición | M34: 0
I35: Odontologia | M35: =J36+K36+L35 -> 0
I36: Oncologia | M36: =J37+K37+L36 -> 0
I37: Ortopedia | M37: 0
I38: Otorrinolaringologia | M38: 0
I39: Pediatria | M39: 0
I40: Psicologia | M40: 0
I41: Urologia | M41: 0
I42: Otras | M42: 0
H43: Subtotal consultas | J43: =SUM(J15:J42) -> 0 | K43: =SUM(K16:K42) -> 0 | L43: =SUM(L15:L42) -> 0 | M43: =+J43+K43+L43 -> 0
H44: Emergencias | M44: =+J44+K44+L44 -> 0
H45: Hospitalizaciones | M45: =+J45+K45+L45 -> 0
H46: Total de servicios | J46: =SUM(J43:J45) -> 0 | K46: =SUM(K43:K45) -> 0 | L46: =SUM(L43:L45) -> 0 | M46: =+J46+K46+L46 -> 0
H48: Otros servicios | J48: Primer Trimestre 2024 | M48: Total trimestre
J49: Enero | K49: Febrero | L49: Marzo
H50: Pruebas de Laboratorio | M50: =SUM(J50:L50) -> 0
H51: Estudios de Imágenes | M51: 0
H52: Evaluaciones Cardiológicas | M52: 0
H53: Procedimientos Quirúrgicos | M53: 0
H54: Endoscopías | M54: 0
H55: Subtotal otros servicios | J55: =SUM(J50:J54) -> 0 | K55: =SUM(K50:K54) -> 0 | L55: =SUM(L50:L54) -> 0 | M55: =SUM(J55:L55) -> 0
I59: Lucero Lopez-Penha | L59: Ginssellys Vasquez
I60: Analista de Estadísticas | L60: Subdirector Planificación

Sheet Hoja2
C1: Hospital General de Especialidades Dr. Mario Tolentino Dipp
B2: Gerencia de Estadística
B3: Consolidado Trimestral Octubre - Diciembre 2025
B6: Servicios brindados | E6: Cuarto Trimestre 2025 | H6: Total trimestre
E7: Octubre | F7: Noviembre | G7: Diciembre
B8: Consulta | C8: Alergologia | H8: =SUM(E8:G8) -> 0
C9: Anestesiologia y reanimación | E9: 105 | F9: 128 | G9: 60 | H9: =SUM(E9:G9) -> 293
C10: Cardiologia | E10: 297 | F10: 368 | G10: 303 | H10: 968
C11: Cirugia Pediatrica | H11: 0
C12: Cirugia Plastica-Reparadora | E12: 42 | F12: 52 | G12: 35 | H12: 129
C13: Cirugía Maxilo-facial | H13: 0
C14: Dermatologia | E14: 86 | F14: 89 | G14: 100 | H14: 275
C15: Endocrinologia | H15: 0
C16: Fisioterapia | H16: 0
C17: Gastroenterologia | E17: 339 | F17: 379 | G17: 395 | H17: 1113
C18: Genética | H18: 0
C19: Ginecología | E19: 199 | F19: 139 | G19: 145 | H19: 483
C20: Hematologia | H20: 0
C21: Infectología | E21: 52 | F21: 48 | G21: 53 | H21: 153
C22: Nefrologia | E22: 221 | F22: 167 | G22: 157 | H22: 545
C23: Neonatología | H23: 0
C24: Neurocirugia | E24: 38 | F24: 63 | G24: 82 | H24: 183
C25: Neurologia | E25: 277 | F25: 294 | G25: 349 | H25: 920
C26: Neumologia | E26: 374 | F26: 300 | G26: 276 | H26: 950
C27: Nutrición | E27: 104 | F27: 90 | G27: 147 | H27: 341
C28: Odontologia | E28: 525 | F28: 629 | G28: 521 | H28: 1675
C29: Oncologia | E29: 66 | F29: 85 | G29: 66 | H29: 217
C30: Ortopedia | H30: 0
C31: Otorrinolaringologia | E31: 177 | F31: 185 | G31: 138 | H31: 500
C32: Pediatria | H32: 0
C33: Psicologia | E33: 70 | F33: 63 | G33: 72 | H33: 205
C34: Urologia | E34: 317 | F34: 404 | G34: 303 | H34: 1024
C35: Otras | E35: 1,900 | F35: 1,773 | G35: 2,474 | H35: =SUM(E35:G35) -> 6,147
B36: Subtotal consultas | E36: =SUM(E8:E35) -> 5,189 | F36: =SUM(F9:F35) -> 5,256 | G36: =SUM(G8:G35) -> 5,676 | H36: =+E36+F36+G36 -> 16,121
B37: Emergencias | E37: 3,656 | F37: 3,682 | G37: 3,256 | H37: =+E37+F37+G37 -> 10,594
B38: Hospitalizaciones | E38: 467 | F38: 516 | G38: 508 | H38: =+E38+F38+G38 -> 1,491
B39: Total de servicios | E39: =SUM(E36:E38) -> 9,312 | F39: =SUM(F36:F38) -> 9,454 | G39: =SUM(G36:G38) -> 9,440 | H39: =+E39+F39+G39 -> 28,206
B41: Otros servicios | D41: Cuarto Trimestre 2025 | G41: Total trimestre
D42: Octubre | E42: Noviembre | F42: Diciembre
B43: Pruebas de Laboratorio | D43: 37,668 | E43: 45,741 | F43: 46,374 | G43: =D43+E43+F43 -> 129,783
B44: Estudios de Imágenes | D44: 10,194 | E44: 12,910 | F44: 8,622 | G44: =D44+E44+F44 -> 31,726
B45: Evaluaciones Cardiológicas | D45: 307 | E45: 326 | F45: 294 | G45: 927
B46: Procedimientos Quirúrgicos | D46: 678 | E46: 704 | F46: 586 | G46: 1,968
B47: Endoscopías | G47: 0
B48: Subtotal otros servicios | D48: =SUM(D43:D47) -> 48847 | E48: =SUM(E43:E47) -> 59,681 | F48: =SUM(F43:F47) -> 55,876 | G48: 164,404
C50: Julissa Garcia Reyes | G50: Ginssellys Vasquez
B51: Secretaria de Estadistica | G51: Representante de Planificación
